Workbook

Sheet StartHere
B2: Student Identification Sheet (version5.2)
B4: Name | C4: Dallan Delgado | D4: <<- enter your name here | G4: (1) | H4: Add your name to Cell C4 and your Student ID to cell C6. Then Click [Start Here] to finish loading data.
G5: (2) | H5: Change the file name to include your name.
B6: Student ID | C6: 002-46-2565 | D6: <<- enter your Student ID here | G6: (3) | H6: When done with your work, Click [I'm Done]
G7: (3) | H7: Upload the file to the applicable iCollege
B8: Date/time | C8: =NOW() -> 2021-04-03T13:52:56.250 | H8: assignment folder to receive credit for this workshop/tutorial
C9: Spring 2021 | G9: (4) | H9: Never use a file created or started by another student (that is academic dishonesty). All text, codes, writing, data entry, formulas, configuration and instructions must be performed by the individual submitting the work.
C10: You must use Excel Desktop. Cloud Excel 365 will not work for this class. | E10: 2021-03-10T13:45:02.740 | F10: Dallan Delgado started S01
C12: Collaboration Started
C14: Individual Challenge started
C15: Kurt Schmitz © 2020 Do not post or reproduce.
B17: Excel release | C17: =INFO("release") -> 16.47 | D17: << Mac Users below 16.24, please update!
B18: OS | C18: =INFO("OSVERSION") -> Macintosh (Intel) Version 11.0.1 (Build 20B29) | D18: << Windows users with version 16.0 are good to go.

Sheet 5.ID (hidden)
A1: Do Not Alter or Delete this Worksheet or you submission cannot be graded! | E1: DirVer
A2: Action | B2: Name | C2: Panther ID | D2: Date/Time | E2: S01
A3: Start S01 | B3: Dallan Delgado | C3: 002-46-2565 | D3: 2021-03-12T18:42:19.450 | E3: Tom
A4: Start S01 | B4: Dallan Delgado | C4: 002-46-2565 | D4: 2021-03-10T13:45:02.730 | E4: C:\Users\Tom\AppData\Local\Temp
A5: Starter Sheet | B5: None | C5: 0 | D5: 2020-01-01 | E5: Welcome to Microsoft Excel version 16.0 build 13628 running on Windows (32-bit) NT 10.00!
E6: S01
E7: Dallan Delgado
E9: Welcome to Microsoft Excel version 16.46 build 212 running on Macintosh (Intel) Version 11.0.1 (Build 20B29)!

Sheet Financial information
A1: Donut Information | Z1: Spring 2021
A2: Based on the below data, create the profit model for Donuts to Go. | Z2: Dallan Delgado
A3: Assume that each customer will buy one donut and one cup of coffee
F5: Enter totals
B6: Time period | E6: Fixed Costs | F6: =C11+C13+C14+C17+C18+C19+C20+C21+C22+C23+C25+C26 -> 5550
A7: Revenue: Cup of Coffee | C7: 4 | E7: Varible Costs
A8: Revenue: Donut | C8: 3.5 | E8: Coffee | F8: =C15+C16 -> 0.35
A9: Donut ingredients per donunt) | B9: per donut | C9: 0.5 | E9: Donut | F9: =C9 -> 0.5
A10: paper products: napkins, plates etc
A11: Insurance | B11: month | C11: 200
A13: Maintenance & Repairs to equipment | B13: month | C13: 0
A14: Marketing & Promotion: Advertising | B14: month | C14: 50
A15: Coffee | B15: per cup | C15: 0.25
A16: Coffee cups | B16: per cup | C16: 0.1
A17: Payroll: Wages (Owner/ Manager) | B17: month | C17: 2500
A18: Payroll: Wages (per Employees) | B18: month | C18: 1000
A19: Donut and Coffee equipment rent | B19: month | C19: 500
A20: Professional Fees: Accounting | B20: month | C20: 50
A21: Professional Fees: Legal | B21: month | C21: 25
A22: Powdered and Liquid Beverages | C22: 0
A23: Rent | B23: month | C23: 1000
A24: Previous research expense for Donuts advancements | C24: 1500
A25: Supplies: Office | B25: month | C25: 25
A26: Utilities | B26: month | C26: 200
A30: Additional Data
A31: Monthly Production | B31: Lost Sales | C31: Day old revenue | D31: High demand, % above Average | E31: Low Demand, % below average
A32: 4000 | B32: 3 | C32: 1.25 | D32: 0.22 | E32: 0.26
A33: Franchise
A34: Monthly Fixed Expense increase | B34: 7000
A35: Monthly Production Increase | B35: 0.32
A36: Monthly demand increase | B36: 0.24
A37: States of Natures | B37: probabilities
A38: High demand | B38: 0.2
A39: Average demand | B39: 0.55
A40: Low demand | B40: 0.25
A64: Total

Sheet SI and regression Pt 1
A1: Month | B1: Demand | C1: Yearly average | D1: Seasonal Index | E1: Average SI | F1: Deseasonalized | G1: Time period | J1: Regression Output
A2: 2018-01-01 | B2: 2475 | D2: =B2/$C$13 -> 0.809220206 | E2: =(D2+D14+D26)/3 -> 0.7232173544 | F2: =B2/E2 -> 3422.207702 | G2: 1 | I2: CLICK CELL J2 as output cell for regression | J2: SUMMARY OUTPUT
A3: 2018-02-01 | B3: 2665.5 | D3: =B3/$C$13 -> 0.87150564 | E3: =(D3+D15+D27)/3 -> 0.8692443158 | F3: =B3/E3 -> 3066.456636 | G3: 2
A4: 2018-03-01 | B4: 3597.5 | D4: 1.176230178 | E4: 0.9454447905 | F4: 3805.087337 | G4: 3 | J4: Regression Statistics
A5: 2018-04-01 | B5: 3104 | D5: 1.014876573 | E5: 0.9824600021 | F5: 3159.416153 | G5: 4 | J5: Multiple R | K5: 0.5947175719
A6: 2018-05-01 | B6: 2410 | D6: 0.7879679581 | E6: 0.9778348491 | F6: 2464.628871 | G6: 5 | J6: R Square | K6: 0.3536889903
A7: 2018-06-01 | B7: 3592 | D7: 1.174431911 | E7: 1.113525375 | F7: 3225.79088 | G7: 6 | J7: Adjusted R Square | K7: 0.334679843
A8: 2018-07-01 | B8: 2740 | D8: 0.8958639856 | E8: 0.8565348836 | F8: 3198.93568 | G8: 7 | J8: Standard Error | K8: 274.4396129
A9: 2018-08-01 | B9: 2683.5 | D9: 0.8773908779 | E9: 0.9187381867 | F9: 2920.853883 | G9: 8 | J9: Observations | K9: 36
A10: 2018-09-01 | B10: 2697.5 | D10: 0.8819682851 | E10: 0.8797483335 | F10: 3066.2178 | G10: 9
A11: 2018-10-01 | B11: 3090 | D11: 1.010299166 | E11: 1.094046877 | F11: 2824.376235 | G11: 10 | J11: ANOVA
A12: 2018-11-01 | B12: 3342.5 | C12: Put yearly average in below cell | D12: 1.092855975 | E12: 1.230095704 | F12: 2717.26825 | G12: 11 | K12: df | L12: SS | M12: MS | N12: F | O12: Significance F
A13: 2018-12-01 | B13: 4304.5 | C13: =AVERAGE(B2:B13) -> 3058.5 | D13: 1.407389243 | E13: 1.409109328 | F13: 3054.766521 | G13: 12 | J13: Regression | K13: 1 | L13: 1401368.982 | M13: 1401368.982 | N13: 18.60625224 | O13: 0.0001307156691
A14: 2019-01-01 | B14: 2135 | D14: =B14/$C$25 -> 0.6400359739 | E14: =(D2+D14+D26)/3 -> 0.7232173544 | F14: 2952.08624 | G14: 13 | J14: Residual | K14: 34 | L14: 2560781.439 | M14: 75317.10115
A15: 2019-02-01 | B15: 2971 | D15: =B15/$C$25 -> 0.8906542757 | E15: =(D3+D15+D27)/3 -> 0.8692443158 | F15: 3417.911335 | G15: 14 | J15: Total | K15: 35 | L15: 3962150.421
A16: 2019-03-01 | B16: 2811 | D16: 0.8426890504 | E16: 0.9454447905 | F16: 2973.203754 | G16: 15
A17: 2019-04-01 | B17: 3144 | D17: 0.9425166754 | E17: 0.9824600021 | F17: 3200.130278 | G17: 16 | K17: Coefficients | L17: Standard Error | M17: t Stat | N17: P-value | O17: Lower 95% | P17: Upper 95% | Q17: Lower 95.0% | R17: Upper 95.0%
A18: 2019-05-01 | B18: 3464.5 | D18: 1.038597017 | E18: 0.9778348491 | F18: 3543.031835 | G18: 17 | J18: Intercept | K18: 2975.074526 | L18: 93.41958926 | M18: 31.84636701 | N18: 6.720757113e-27 | O18: 2785.223079 | P18: 3164.925973 | Q18: 2785.223079 | R18: 3164.925973
A19: 2019-06-01 | B19: 3609.5 | D19: 1.082065503 | E19: 1.113525375 | F19: 3241.506732 | G19: 18 | J19: Time period | K19: 18.99243893 | L19: 4.403026371 | M19: 4.313496521 | N19: 0.0001307156691 | O19: 10.04441277 | P19: 27.9404651 | Q19: 10.04441277 | R19: 27.9404651
A20: 2019-07-01 | B20: 2770 | D20: 0.8303979615 | E20: 0.8565348836 | F20: 3233.960523 | G20: 19
A21: 2019-08-01 | B21: 3077 | D21: 0.9224312374 | E21: 0.9187381867 | F21: 3349.15871 | G21: 20
A22: 2019-09-01 | B22: 3064 | D22: 0.9185340628 | E22: 0.8797483335 | F22: 3482.814213 | G22: 21
A23: 2019-10-01 | B23: 3744 | D23: 1.12238627 | E23: 1.094046877 | F23: 3422.156836 | G23: 22
A24: 2019-11-01 | B24: 4253.5 | C24: Put yearly average in below cell | D24: 1.275125534 | E24: 1.230095704 | F24: 3457.861033 | G24: 23
A25: 2019-12-01 | B25: 4985.5 | C25: =AVERAGE(B14:B25) -> 3335.75 | D25: 1.494566439 | E25: 1.409109328 | F25: 3538.050526 | G25: 24
A26: 2020-01-01 | B26: 2584 | D26: =B26/$C$37 -> 0.7203958832 | E26: =(D2+D14+D26)/3 -> 0.7232173544 | F26: 3572.923111 | G26: 25
A27: 2020-02-01 | B27: 3033 | D27: =B27/$C$37 -> 0.8455730316 | E27: =(D3+D15+D27)/3 -> 0.8692443158 | F27: 3489.237657 | G27: 26
A28: 2020-03-01 | B28: 2932 | D28: 0.817415143 | E28: 0.9454447905 | F28: 3101.185843 | G28: 27
A29: 2020-04-01 | B29: 3551 | D29: 0.9899867574 | E29: 0.9824600021 | F29: 3614.396507 | G29: 28
A30: 2020-05-01 | B30: 3970.5 | D30: 1.106939572 | E30: 0.9778348491 | F30: 4060.501631 | G30: 29
A31: 2020-06-01 | B31: 3888.5 | D31: 1.084078712 | E31: 1.113525375 | F31: 3492.062315 | G31: 30
A32: 2020-07-01 | B32: 3025 | D32: 0.8433427038 | E32: 0.8565348836 | F32: 3531.67169 | G32: 31
A33: 2020-08-01 | B33: 3430.5 | D33: 0.9563924448 | E33: 0.9187381867 | F33: 3733.925562 | G33: 32
A34: 2020-09-01 | B34: 3008.5 | D34: 0.8387426527 | E34: 0.8797483335 | F34: 3419.72799 | G34: 33
A35: 2020-10-01 | B35: 4123 | D35: 1.149455196 | E35: 1.094046877 | F35: 3768.577092 | G35: 34
A36: 2020-11-01 | B36: 4743 | C36: Put yearly average in below cell | D36: 1.322305601 | E36: 1.230095704 | F36: 3855.79755 | G36: 35 | I36: Use the average seasonal Index in the column for year 2018
A37: 2020-12-01 | B37: 4754 | C37: =AVERAGE(B26:B37) -> 3586.916667 | D37: 1.325372302 | E37: 1.409109328 | F37: =B37/E37 -> 3373.762351 | G37: 36 | H37: Deseasonalized forecast | I37: Seasonalized forecast
G38: 37 | H38: =$K$18+($K$19*G38) -> 3677.794766 | I38: =H38*E2 -> 2659.845001 | J38: When you move your forecast to the profit models, you must use an equation, not just copy the values
G39: 38 | H39: =$K$18+($K$19*G39) -> 3696.787205 | I39: =H39*E3 -> 3213.411265
G40: 39 | H40: 3715.779644 | I40: 3513.064508
G41: 40 | H41: 3734.772083 | I41: 3669.264189
G42: 41 | H42: 3753.764522 | I42: 3670.561765
G43: 42 | H43: 3772.756961 | I43: 4201.060611
G44: 43 | H44: 3791.7494 | I44: 3247.765631
G45: 44 | H45: 3810.741839 | I45: 3501.074047
G46: 45 | H46: 3829.734278 | I46: 3369.202349
G47: 46 | H47: 3848.726717 | I47: 4210.687446
G48: 47 | H48: 3867.719156 | I48: 4757.664716
G49: 48 | H49: 3886.711595 | I49: =H49*E13 -> 5476.801564
Z100: Dallan Delgado
Z102: Spring 2021

Sheet Current operations Pt2 & Pt3
A1: CURRENT OPERATIONS | E1: Monthly Production | F1: Lost Sales | G1: Day old revenue | Z1: test
A2: Part 2 | E2: ='Financial information '!A32 -> 4000 | F2: ='Financial information '!B32 -> 3 | G2: ='Financial information '!C32 -> 1.25 | Z2: Summer 2020
A3: AVERAGE DEMAND
A4: Month | B4: Jan | C4: Feb | D4: March | E4: April | F4: May | G4: June | H4: July | I4: August | J4: September | K4: October | L4: November | M4: December
A5: Demand | B5: ='SI and regression Pt 1'!I38 -> 2659.845001 | C5: ='SI and regression Pt 1'!I39 -> 3213.411265 | D5: ='SI and regression Pt 1'!I40 -> 3513.064508 | E5: ='SI and regression Pt 1'!I41 -> 3669.264189 | F5: ='SI and regression Pt 1'!I42 -> 3670.561765 | G5: ='SI and regression Pt 1'!I43 -> 4201.060611 | H5: ='SI and regression Pt 1'!I44 -> 3247.765631 | I5: ='SI and regression Pt 1'!I45 -> 3501.074047 | J5: ='SI and regression Pt 1'!I46 -> 3369.202349 | K5: ='SI and regression Pt 1'!I47 -> 4210.687446 | L5: ='SI and regression Pt 1'!I48 -> 4757.664716 | M5: ='SI and regression Pt 1'!I49 -> 5476.801564 | N5: =AVERAGE(B5:M5) -> 3790.866924
A6: satisfied demand | B6: =IF(B5<$E$2,B5,$E$2) -> 2659.845001 | C6: =IF(C5<$E$2,C5,$E$2) -> 3213.411265 | D6: =IF(D5<$E$2,D5,$E$2) -> 3513.064508 | E6: 3669.264189 | F6: 3670.561765 | G6: 4000 | H6: 3247.765631 | I6: 3501.074047 | J6: 3369.202349 | K6: 4000 | L6: 4000 | M6: 4000
A7: Extra donuts(over) | B7: =IF($E$2>B5,$E$2-B5,0) -> 1340.154999 | C7: =IF($E$2>C5,$E$2-C5,0) -> 786.5887352 | D7: =IF($E$2>D5,$E$2-D5,0) -> 486.9354925 | E7: 330.7358112 | F7: 329.4382348 | G7: 0 | H7: 752.2343689 | I7: 498.925953 | J7: 630.7976511 | K7: 0 | L7: 0 | M7: 0
A8: Unsatisfied customers (short) | B8: =IF($E$2<B5,B5-$E$2,0) -> 0 | C8: =IF($E$2<C5,C5-$E$2,0) -> 0 | D8: =IF($E$2<D5,D5-$E$2,0) -> 0 | E8: 0 | F8: 0 | G8: 201.0606106 | H8: 0 | I8: 0 | J8: 0 | K8: 210.6874465 | L8: 757.6647159 | M8: 1476.801564
A9: Revenue
A10: coffee | B10: =B6*'Financial information '!$C$7 -> 10639.38 | C10: =C6*'Financial information '!$C$7 -> 12853.64506 | D10: =D6*'Financial information '!$C$7 -> 14052.25803 | E10: =E6*'Financial information '!$C$7 -> 14677.05676 | F10: =F6*'Financial information '!$C$7 -> 14682.24706 | G10: =G6*'Financial information '!$C$7 -> 16000 | H10: =H6*'Financial information '!$C$7 -> 12991.06252 | I10: =I6*'Financial information '!$C$7 -> 14004.29619 | J10: =J6*'Financial information '!$C$7 -> 13476.8094 | K10: =K6*'Financial information '!$C$7 -> 16000 | L10: =L6*'Financial information '!$C$7 -> 16000 | M10: =M6*'Financial information '!$C$7 -> 16000
A11: donut | B11: =B6*'Financial information '!$C$8 -> 9309.457503 | C11: =C6*'Financial information '!$C$8 -> 11246.93943 | D11: =D6*'Financial information '!$C$8 -> 12295.72578 | E11: =E6*'Financial information '!$C$8 -> 12842.42466 | F11: =F6*'Financial information '!$C$8 -> 12846.96618 | G11: =G6*'Financial information '!$C$8 -> 14000 | H11: =H6*'Financial information '!$C$8 -> 11367.17971 | I11: =I6*'Financial information '!$C$8 -> 12253.75916 | J11: =J6*'Financial information '!$C$8 -> 11792.20822 | K11: =K6*'Financial information '!$C$8 -> 14000 | L11: =L6*'Financial information '!$C$8 -> 14000 | M11: =M6*'Financial information '!$C$8 -> 14000
A12: Revenue from day old sales | B12: =SUM(B10:B11) -> 19948.83751 | C12: =SUM(C10:C11) -> 24100.58449 | D12: 26347.98381 | E12: 27519.48142 | F12: 27529.21324 | G12: 30000 | H12: 24358.24223 | I12: 26258.05535 | J12: 25269.01762 | K12: 30000 | L12: 30000 | M12: 30000
A13: Total Revenue
A14: Expenses
A15: Fixed Expenses | B15: ='Financial information '!$F$6 -> 5550 | C15: ='Financial information '!$F$6 -> 5550 | D15: ='Financial information '!$F$6 -> 5550 | E15: ='Financial information '!$F$6 -> 5550 | F15: ='Financial information '!$F$6 -> 5550 | G15: ='Financial information '!$F$6 -> 5550 | H15: ='Financial information '!$F$6 -> 5550 | I15: ='Financial information '!$F$6 -> 5550 | J15: ='Financial information '!$F$6 -> 5550 | K15: ='Financial information '!$F$6 -> 5550 | L15: ='Financial information '!$F$6 -> 5550 | M15: ='Financial information '!$F$6 -> 5550
A16: Total Fixed Expense | B16: =B15 -> 5550 | C16: =C15 -> 5550 | D16: 5550 | E16: 5550 | F16: 5550 | G16: 5550 | H16: 5550 | I16: 5550 | J16: 5550 | K16: 5550 | L16: 5550 | M16: 5550
A18: Variable Expenses
A19: Coffee Variable expense | B19: ='Financial information '!$F$8*$E$2 -> 1400 | C19: ='Financial information '!$F$8*$E$2 -> 1400 | D19: ='Financial information '!$F$8*$E$2 -> 1400 | E19: ='Financial information '!$F$8*$E$2 -> 1400 | F19: ='Financial information '!$F$8*$E$2 -> 1400 | G19: ='Financial information '!$F$8*$E$2 -> 1400 | H19: ='Financial information '!$F$8*$E$2 -> 1400 | I19: ='Financial information '!$F$8*$E$2 -> 1400 | J19: ='Financial information '!$F$8*$E$2 -> 1400 | K19: ='Financial information '!$F$8*$E$2 -> 1400 | L19: ='Financial information '!$F$8*$E$2 -> 1400 | M19: ='Financial information '!$F$8*$E$2 -> 1400
A20: Donut Variable expense | B20: ='Financial information '!$F$9*$E$2 -> 2000 | C20: ='Financial information '!$F$9*$E$2 -> 2000 | D20: ='Financial information '!$F$9*$E$2 -> 2000 | E20: ='Financial information '!$F$9*$E$2 -> 2000 | F20: ='Financial information '!$F$9*$E$2 -> 2000 | G20: ='Financial information '!$F$9*$E$2 -> 2000 | H20: ='Financial information '!$F$9*$E$2 -> 2000 | I20: ='Financial information '!$F$9*$E$2 -> 2000 | J20: ='Financial information '!$F$9*$E$2 -> 2000 | K20: ='Financial information '!$F$9*$E$2 -> 2000 | L20: ='Financial information '!$F$9*$E$2 -> 2000 | M20: ='Financial information '!$F$9*$E$2 -> 2000
A21: Total Variable Expenses | B21: =SUM(B19:B20) -> 3400 | C21: =SUM(C19:C20) -> 3400 | D21: 3400 | E21: 3400 | F21: 3400 | G21: 3400 | H21: 3400 | I21: 3400 | J21: 3400 | K21: 3400 | L21: 3400 | M21: 3400
A22: Expenses: due to lost sales
A23: Total Expenses | B23: =B21+B16 -> 8950 | C23: =C21+C16 -> 8950 | D23: 8950 | E23: 8950 | F23: 8950 | G23: 8950 | H23: 8950 | I23: 8950 | J23: 8950 | K23: 8950 | L23: 8950 | M23: 8950
N24: Yearly Total
A25: Profit Donuts and Coffee | B25: =B12-B23+B7*G2-B8*$F$2 -> 12674.03126 | C25: =C12-C23+C7*H2-C8*$F$2 -> 15150.58449 | D25: =D12-D23+D7*I2-D8*$F$2 -> 17397.98381 | E25: 18569.48142 | F25: 18579.21324 | G25: 20446.81817 | H25: 15408.24223 | I25: 17308.05535 | J25: 16319.01762 | K25: 20417.93766 | L25: 18777.00585 | M25: 16619.59531 | N25: =SUM(B25:M25) -> 207667.9664
A27: Part 3 | B27: You should be able to copy from average to high and low and then just make some modifications
A28: HIGH DEMAND
A29: Month | B29: =B4 -> Jan | C29: =C4 -> Feb | D29: March | E29: April | F29: May | G29: June | H29: July | I29: August | J29: September | K29: October | L29: November | M29: December
A30: Demand | B30: =B5*(1+'Financial information '!$D$32) -> 3245.010901 | C30: =C5*(1+'Financial information '!$D$32) -> 3920.361743 | D30: =D5*(1+'Financial information '!$D$32) -> 4285.938699 | E30: =E5*(1+'Financial information '!$D$32) -> 4476.50231 | F30: =F5*(1+'Financial information '!$D$32) -> 4478.085354 | G30: =G5*(1+'Financial information '!$D$32) -> 5125.293945 | H30: =H5*(1+'Financial information '!$D$32) -> 3962.27407 | I30: =I5*(1+'Financial information '!$D$32) -> 4271.310337 | J30: =J5*(1+'Financial information '!$D$32) -> 4110.426866 | K30: =K5*(1+'Financial information '!$D$32) -> 5137.038685 | L30: =L5*(1+'Financial information '!$D$32) -> 5804.350953 | M30: =M5*(1+'Financial information '!$D$32) -> 6681.697908
A31: satisfied demand | B31: =IF(B30<$E$2,B30,$E$2) -> 3245.010901 | C31: =IF(C30<$E$2,C30,$E$2) -> 3920.361743 | D31: =IF(D30<$E$2,D30,$E$2) -> 4000 | E31: 4000 | F31: 4000 | G31: 4000 | H31: 3962.27407 | I31: 4000 | J31: 4000 | K31: 4000 | L31: 4000 | M31: 4000
A32: Extra donuts(over) | B32: =IF($E$2>B30,$E$2-B30,0) -> 754.9890989 | C32: =IF($E$2>C30,$E$2-C30,0) -> 79.63825688 | D32: =IF($E$2>D30,$E$2-D30,0) -> 0 | E32: 0 | F32: 0 | G32: 0 | H32: 37.72593003 | I32: 0 | J32: 0 | K32: 0 | L32: 0 | M32: 0
A33: Unsatisfied customers (short) | B33: =IF($E$2<B30,B30-$E$2,0) -> 0 | C33: =C8 -> 0 | D33: 0 | E33: 0 | F33: 0 | G33: 201.0606106 | H33: 0 | I33: 0 | J33: 0 | K33: 210.6874465 | L33: 757.6647159 | M33: 1476.801564
A34: Revenue
A35: coffee | B35: =B31*'Financial information '!$C$7 -> 12980.0436 | C35: =C31*'Financial information '!$C$7 -> 15681.44697 | D35: =D31*'Financial information '!$C$7 -> 16000 | E35: =E31*'Financial information '!$C$7 -> 16000 | F35: =F31*'Financial information '!$C$7 -> 16000 | G35: =G31*'Financial information '!$C$7 -> 16000 | H35: =H31*'Financial information '!$C$7 -> 15849.09628 | I35: =I31*'Financial information '!$C$7 -> 16000 | J35: =J31*'Financial information '!$C$7 -> 16000 | K35: =K31*'Financial information '!$C$7 -> 16000 | L35: =L31*'Financial information '!$C$7 -> 16000 | M35: =M31*'Financial information '!$C$7 -> 16000
A36: donut | B36: =B31*'Financial information '!$C$8 -> 11357.53815 | C36: =C31*'Financial information '!$C$8 -> 13721.2661 | D36: =D31*'Financial information '!$C$8 -> 14000 | E36: =E31*'Financial information '!$C$8 -> 14000 | F36: =F31*'Financial information '!$C$8 -> 14000 | G36: =G31*'Financial information '!$C$8 -> 14000 | H36: =H31*'Financial information '!$C$8 -> 13867.95924 | I36: =I31*'Financial information '!$C$8 -> 14000 | J36: =J31*'Financial information '!$C$8 -> 14000 | K36: =K31*'Financial information '!$C$8 -> 14000 | L36: =L31*'Financial information '!$C$8 -> 14000 | M36: =M31*'Financial information '!$C$8 -> 14000
A37: Revenue from day old sales | B37: =SUM(B35:B36) -> 24337.58176 | C37: =SUM(C35:C36) -> 29402.71307 | D37: =SUM(D35:D36) -> 30000 | E37: 30000 | F37: 30000 | G37: 30000 | H37: 29717.05552 | I37: 30000 | J37: 30000 | K37: 30000 | L37: 30000 | M37: 30000
A38: Total Revenue
A39: Expenses
A40: Fixed Expenses | B40: ='Financial information '!$F$6 -> 5550 | C40: ='Financial information '!$F$6 -> 5550 | D40: ='Financial information '!$F$6 -> 5550 | E40: ='Financial information '!$F$6 -> 5550 | F40: ='Financial information '!$F$6 -> 5550 | G40: ='Financial information '!$F$6 -> 5550 | H40: ='Financial information '!$F$6 -> 5550 | I40: ='Financial information '!$F$6 -> 5550 | J40: ='Financial information '!$F$6 -> 5550 | K40: ='Financial information '!$F$6 -> 5550 | L40: ='Financial information '!$F$6 -> 5550 | M40: ='Financial information '!$F$6 -> 5550
A41: Total Fixed Expense | B41: =B40 -> 5550 | C41: =C40 -> 5550 | D41: =D40 -> 5550 | E41: 5550 | F41: 5550 | G41: 5550 | H41: 5550 | I41: 5550 | J41: 5550 | K41: 5550 | L41: 5550 | M41: 5550
A43: Variable Expenses
A44: Coffee Variable expense | B44: ='Financial information '!$F$8*$E$2 -> 1400 | C44: ='Financial information '!$F$8*$E$2 -> 1400 | D44: ='Financial information '!$F$8*$E$2 -> 1400 | E44: ='Financial information '!$F$8*$E$2 -> 1400 | F44: ='Financial information '!$F$8*$E$2 -> 1400 | G44: ='Financial information '!$F$8*$E$2 -> 1400 | H44: ='Financial information '!$F$8*$E$2 -> 1400 | I44: ='Financial information '!$F$8*$E$2 -> 1400 | J44: ='Financial information '!$F$8*$E$2 -> 1400 | K44: ='Financial information '!$F$8*$E$2 -> 1400 | L44: ='Financial information '!$F$8*$E$2 -> 1400 | M44: ='Financial information '!$F$8*$E$2 -> 1400
A45: Donut Variable expense | B45: ='Financial information '!$F$9*$E$2 -> 2000 | C45: ='Financial information '!$F$9*$E$2 -> 2000 | D45: ='Financial information '!$F$9*$E$2 -> 2000 | E45: ='Financial information '!$F$9*$E$2 -> 2000 | F45: ='Financial information '!$F$9*$E$2 -> 2000 | G45: ='Financial information '!$F$9*$E$2 -> 2000 | H45: ='Financial information '!$F$9*$E$2 -> 2000 | I45: ='Financial information '!$F$9*$E$2 -> 2000 | J45: ='Financial information '!$F$9*$E$2 -> 2000 | K45: ='Financial information '!$F$9*$E$2 -> 2000 | L45: ='Financial information '!$F$9*$E$2 -> 2000 | M45: ='Financial information '!$F$9*$E$2 -> 2000
A46: Total Variable Expenses | B46: =SUM(B44:B45) -> 3400 | C46: =SUM(C44:C45) -> 3400 | D46: =SUM(D44:D45) -> 3400 | E46: 3400 | F46: 3400 | G46: 3400 | H46: 3400 | I46: 3400 | J46: 3400 | K46: 3400 | L46: 3400 | M46: 3400
A47: Expenses: due to lost sales
A48: Total Expenses | B48: =B46+B41 -> 8950 | C48: =C46+C41 -> 8950 | D48: =D46+D41 -> 8950 | E48: 8950 | F48: 8950 | G48: 8950 | H48: 8950 | I48: 8950 | J48: 8950 | K48: 8950 | L48: 8950 | M48: 8950
N49: Yearly Total
A50: Profit Donuts and Coffee | B50: =B37-B48+B32*G27-B33*$F$2 -> 15387.58176 | C50: =C37-C48+C32*H27-C33*$F$2 -> 20452.71307 | D50: =D37-D48+D32*I27-D33*$F$2 -> 21050 | E50: 21050 | F50: 21050 | G50: 20446.81817 | H50: 20767.05552 | I50: 21050 | J50: 21050 | K50: 20417.93766 | L50: 18777.00585 | M50: 16619.59531 | N50: =SUM(B50:M50) -> 238118.7073
A52: Part 3
A53: LOW DEMAND
A54: Month | B54: =B29 -> Jan | C54: =C29 -> Feb | D54: March | E54: April | F54: May | G54: June | H54: July | I54: August | J54: September | K54: October | L54: November | M54: December
A55: Demand | B55: =B5*(1-'Financial information '!$E$32) -> 1968.285301 | C55: =C5*(1-'Financial information '!$E$32) -> 2377.924336 | D55: =D5*(1-'Financial information '!$E$32) -> 2599.667736 | E55: =E5*(1-'Financial information '!$E$32) -> 2715.2555 | F55: =F5*(1-'Financial information '!$E$32) -> 2716.215706 | G55: =G5*(1-'Financial information '!$E$32) -> 3108.784852 | H55: =H5*(1-'Financial information '!$E$32) -> 2403.346567 | I55: =I5*(1-'Financial information '!$E$32) -> 2590.794795 | J55: =J5*(1-'Financial information '!$E$32) -> 2493.209738 | K55: =K5*(1-'Financial information '!$E$32) -> 3115.90871 | L55: =L5*(1-'Financial information '!$E$32) -> 3520.67189 | M55: =M5*(1-'Financial information '!$E$32) -> 4052.833157
A56: satisfied demand | B56: =IF(B55<$E$2,B55,$E$2) -> 1968.285301 | C56: =IF(C55<$E$2,C55,$E$2) -> 2377.924336 | D56: =IF(D55<$E$2,D55,$E$2) -> 2599.667736 | E56: =IF(E55<$E$2,E55,$E$2) -> 2715.2555 | F56: =IF(F55<$E$2,F55,$E$2) -> 2716.215706 | G56: =IF(G55<$E$2,G55,$E$2) -> 3108.784852 | H56: =IF(H55<$E$2,H55,$E$2) -> 2403.346567 | I56: =IF(I55<$E$2,I55,$E$2) -> 2590.794795 | J56: =IF(J55<$E$2,J55,$E$2) -> 2493.209738 | K56: =IF(K55<$E$2,K55,$E$2) -> 3115.90871 | L56: =IF(L55<$E$2,L55,$E$2) -> 3520.67189 | M56: =IF(M55<$E$2,M55,$E$2) -> 4000
A57: Extra donuts(over) | B57: =IF($E$2>B55,$E$2-B55,0) -> 2031.714699 | C57: =IF($E$2>C55,$E$2-C55,0) -> 1622.075664 | D57: =IF($E$2>D55,$E$2-D55,0) -> 1400.332264 | E57: 1284.7445 | F57: 1283.784294 | G57: 891.2151482 | H57: 1596.653433 | I57: 1409.205205 | J57: 1506.790262 | K57: 884.0912896 | L57: 479.3281102 | M57: 0
A58: Unsatisfied customers (short) | B58: =IF($E$2<B55,B55-$E$2,0) -> 0 | C58: =C33 -> 0 | D58: 0 | E58: 0 | F58: 0 | G58: 201.0606106 | H58: 0 | I58: 0 | J58: 0 | K58: 210.6874465 | L58: 757.6647159 | M58: 1476.801564
A59: Revenue
A60: coffee | B60: =B56*'Financial information '!$C$7 -> 7873.141203 | C60: =C56*'Financial information '!$C$7 -> 9511.697344 | D60: =D56*'Financial information '!$C$7 -> 10398.67094 | E60: =E56*'Financial information '!$C$7 -> 10861.022 | F60: =F56*'Financial information '!$C$7 -> 10864.86282 | G60: =G56*'Financial information '!$C$7 -> 12435.13941 | H60: =H56*'Financial information '!$C$7 -> 9613.386268 | I60: =I56*'Financial information '!$C$7 -> 10363.17918 | J60: =J56*'Financial information '!$C$7 -> 9972.838953 | K60: =K56*'Financial information '!$C$7 -> 12463.63484 | L60: =L56*'Financial information '!$C$7 -> 14082.68756 | M60: =M56*'Financial information '!$C$7 -> 16000
A61: donut | B61: =B56*'Financial information '!$C$8 -> 6888.998552 | C61: =C56*'Financial information '!$C$8 -> 8322.735176 | D61: =D56*'Financial information '!$C$8 -> 9098.837074 | E61: =E56*'Financial information '!$C$8 -> 9503.394249 | F61: =F56*'Financial information '!$C$8 -> 9506.754972 | G61: =G56*'Financial information '!$C$8 -> 10880.74698 | H61: =H56*'Financial information '!$C$8 -> 8411.712985 | I61: =I56*'Financial information '!$C$8 -> 9067.781782 | J61: =J56*'Financial information '!$C$8 -> 8726.234084 | K61: =K56*'Financial information '!$C$8 -> 10905.68049 | L61: =L56*'Financial information '!$C$8 -> 12322.35161 | M61: =M56*'Financial information '!$C$8 -> 14000
A62: Revenue from day old sales | B62: =SUM(B60:B61) -> 14762.13975 | C62: =SUM(C60:C61) -> 17834.43252 | D62: =SUM(D60:D61) -> 19497.50802 | E62: =SUM(E60:E61) -> 20364.41625 | F62: =SUM(F60:F61) -> 20371.6178 | G62: =SUM(G60:G61) -> 23315.88639 | H62: =SUM(H60:H61) -> 18025.09925 | I62: =SUM(I60:I61) -> 19430.96096 | J62: =SUM(J60:J61) -> 18699.07304 | K62: =SUM(K60:K61) -> 23369.31533 | L62: =SUM(L60:L61) -> 26405.03917 | M62: =SUM(M60:M61) -> 30000
A63: Total Revenue
A64: Expenses
A65: Fixed Expenses | B65: ='Financial information '!$F$6 -> 5550 | C65: ='Financial information '!$F$6 -> 5550 | D65: ='Financial information '!$F$6 -> 5550 | E65: ='Financial information '!$F$6 -> 5550 | F65: ='Financial information '!$F$6 -> 5550 | G65: ='Financial information '!$F$6 -> 5550 | H65: ='Financial information '!$F$6 -> 5550 | I65: ='Financial information '!$F$6 -> 5550 | J65: ='Financial information '!$F$6 -> 5550 | K65: ='Financial information '!$F$6 -> 5550 | L65: ='Financial information '!$F$6 -> 5550 | M65: ='Financial information '!$F$6 -> 5550
A66: Total Fixed Expense | B66: =B65 -> 5550 | C66: =C65 -> 5550 | D66: =D65 -> 5550 | E66: =E65 -> 5550 | F66: =F65 -> 5550 | G66: =G65 -> 5550 | H66: =H65 -> 5550 | I66: =I65 -> 5550 | J66: =J65 -> 5550 | K66: =K65 -> 5550 | L66: =L65 -> 5550 | M66: =M65 -> 5550
A68: Variable Expenses
A69: Coffee Variable expense | B69: ='Financial information '!$F$8*$E$2 -> 1400 | C69: ='Financial information '!$F$8*$E$2 -> 1400 | D69: ='Financial information '!$F$8*$E$2 -> 1400 | E69: ='Financial information '!$F$8*$E$2 -> 1400 | F69: ='Financial information '!$F$8*$E$2 -> 1400 | G69: ='Financial information '!$F$8*$E$2 -> 1400 | H69: ='Financial information '!$F$8*$E$2 -> 1400 | I69: ='Financial information '!$F$8*$E$2 -> 1400 | J69: ='Financial information '!$F$8*$E$2 -> 1400 | K69: ='Financial information '!$F$8*$E$2 -> 1400 | L69: ='Financial information '!$F$8*$E$2 -> 1400 | M69: ='Financial information '!$F$8*$E$2 -> 1400
A70: Donut Variable expense | B70: ='Financial information '!$F$9*$E$2 -> 2000 | C70: ='Financial information '!$F$9*$E$2 -> 2000 | D70: ='Financial information '!$F$9*$E$2 -> 2000 | E70: ='Financial information '!$F$9*$E$2 -> 2000 | F70: ='Financial information '!$F$9*$E$2 -> 2000 | G70: ='Financial information '!$F$9*$E$2 -> 2000 | H70: ='Financial information '!$F$9*$E$2 -> 2000 | I70: ='Financial information '!$F$9*$E$2 -> 2000 | J70: ='Financial information '!$F$9*$E$2 -> 2000 | K70: ='Financial information '!$F$9*$E$2 -> 2000 | L70: ='Financial information '!$F$9*$E$2 -> 2000 | M70: ='Financial information '!$F$9*$E$2 -> 2000
A71: Total Variable Expenses | B71: =SUM(B69:B70) -> 3400 | C71: =SUM(C69:C70) -> 3400 | D71: =SUM(D69:D70) -> 3400 | E71: =SUM(E69:E70) -> 3400 | F71: =SUM(F69:F70) -> 3400 | G71: =SUM(G69:G70) -> 3400 | H71: =SUM(H69:H70) -> 3400 | I71: =SUM(I69:I70) -> 3400 | J71: =SUM(J69:J70) -> 3400 | K71: =SUM(K69:K70) -> 3400 | L71: =SUM(L69:L70) -> 3400 | M71: =SUM(M69:M70) -> 3400
A72: Expenses: due to lost sales
A73: Total Expenses | B73: =B71+B66 -> 8950 | C73: =C71+C66 -> 8950 | D73: =D71+D66 -> 8950 | E73: 8950 | F73: 8950 | G73: 8950 | H73: 8950 | I73: 8950 | J73: 8950 | K73: 8950 | L73: 8950 | M73: 8950
N74: Yearly Total
A75: Profit Donuts and Coffee | B75: =B62-B73+B57*G52-B58*$F$2 -> 5812.139755 | C75: =C62-C73+C57*H52-C58*$F$2 -> 8884.43252 | D75: =D62-D73+D57*I52-D58*$F$2 -> 10547.50802 | E75: =E62-E73+E57*J52-E58*$F$2 -> 11414.41625 | F75: =F62-F73+F57*K52-F58*$F$2 -> 11421.6178 | G75: =G62-G73+G57*L52-G58*$F$2 -> 13762.70456 | H75: =H62-H73+H57*M52-H58*$F$2 -> 9075.099253 | I75: =I62-I73+I57*N52-I58*$F$2 -> 10480.96096 | J75: =J62-J73+J57*O52-J58*$F$2 -> 9749.073036 | K75: =K62-K73+K57*P52-K58*$F$2 -> 13787.25299 | L75: =L62-L73+L57*Q52-L58*$F$2 -> 15182.04503 | M75: =M62-M73+M57*R52-M58*$F$2 -> 16619.59531 | N75: =SUM(B75:M75) -> 136736.8455
Z200: Dallan Delgado
Z201: Spring 2021

Sheet Franchise operations Pt2 & Pt3
A1: FRANCHISE | E1: Monthly Production | F1: Lost Sales | G1: Day old revenue
A2: Part 2 | E2: ='Financial information '!A32*(1+'Financial information '!$B$35) -> 5280 | F2: ='Financial information '!B32 -> 3 | G2: ='Financial information '!C32 -> 1.25
A3: AVERAGE DEMAND
A4: Month | B4: ='Current operations Pt2 & Pt3 '!B29 -> Jan | C4: ='Current operations Pt2 & Pt3 '!C29 -> Feb | D4: ='Current operations Pt2 & Pt3 '!D29 -> March | E4: ='Current operations Pt2 & Pt3 '!E29 -> April | F4: ='Current operations Pt2 & Pt3 '!F29 -> May | G4: ='Current operations Pt2 & Pt3 '!G29 -> June | H4: ='Current operations Pt2 & Pt3 '!H29 -> July | I4: ='Current operations Pt2 & Pt3 '!I29 -> August | J4: ='Current operations Pt2 & Pt3 '!J29 -> September | K4: ='Current operations Pt2 & Pt3 '!K29 -> October | L4: ='Current operations Pt2 & Pt3 '!L29 -> November | M4: ='Current operations Pt2 & Pt3 '!M29 -> December
A5: Demand | B5: ='SI and regression Pt 1'!I38*(1+'Financial information '!$B$36) -> 3298.207801 | C5: ='SI and regression Pt 1'!I39*(1+'Financial information '!$B$36) -> 3984.629968 | D5: ='SI and regression Pt 1'!I40*(1+'Financial information '!$B$36) -> 4356.199989 | E5: ='SI and regression Pt 1'!I41*(1+'Financial information '!$B$36) -> 4549.887594 | F5: ='SI and regression Pt 1'!I42*(1+'Financial information '!$B$36) -> 4551.496589 | G5: ='SI and regression Pt 1'!I43*(1+'Financial information '!$B$36) -> 5209.315157 | H5: ='SI and regression Pt 1'!I44*(1+'Financial information '!$B$36) -> 4027.229383 | I5: ='SI and regression Pt 1'!I45*(1+'Financial information '!$B$36) -> 4341.331818 | J5: ='SI and regression Pt 1'!I46*(1+'Financial information '!$B$36) -> 4177.810913 | K5: ='SI and regression Pt 1'!I47*(1+'Financial information '!$B$36) -> 5221.252434 | L5: ='SI and regression Pt 1'!I48*(1+'Financial information '!$B$36) -> 5899.504248 | M5: ='SI and regression Pt 1'!I49*(1+'Financial information '!$B$36) -> 6791.233939
A6: satisfied demand | B6: =IF(B5<$E$2,B5,$E$2) -> 3298.207801 | C6: =IF(C5<$E$2,C5,$E$2) -> 3984.629968 | D6: =IF(D5<$E$2,D5,$E$2) -> 4356.199989 | E6: 4549.887594 | F6: 4551.496589 | G6: 5209.315157 | H6: 4027.229383 | I6: 4341.331818 | J6: 4177.810913 | K6: 5221.252434 | L6: 5280 | M6: 5280
A7: Extra donuts(over) | B7: =IF($E$2>B5,$E$2-B5,0) -> 1981.792199 | C7: =IF($E$2>C5,$E$2-C5,0) -> 1295.370032 | D7: =IF($E$2>D5,$E$2-D5,0) -> 923.8000107 | E7: 730.1124059 | F7: 728.5034112 | G7: 70.68484285 | H7: 1252.770617 | I7: 938.6681817 | J7: 1102.189087 | K7: 58.74756634 | L7: 0 | M7: 0
A8: Unsatisfied customers (short) | B8: =IF($E$2<B5,B5-$E$2,0) -> 0 | C8: =IF($E$2<C5,C5-$E$2,0) -> 0 | D8: =IF($E$2<D5,D5-$E$2,0) -> 0 | E8: 0 | F8: 0 | G8: 0 | H8: 0 | I8: 0 | J8: 0 | K8: 0 | L8: 619.5042477 | M8: 1511.233939
A9: Revenue
A10: coffee | B10: =B6*'Financial information '!$C$7 -> 13192.8312 | C10: =C6*'Financial information '!$C$7 -> 15938.51987 | D10: =D6*'Financial information '!$C$7 -> 17424.79996 | E10: =E6*'Financial information '!$C$7 -> 18199.55038 | F10: =F6*'Financial information '!$C$7 -> 18205.98636 | G10: =G6*'Financial information '!$C$7 -> 20837.26063 | H10: =H6*'Financial information '!$C$7 -> 16108.91753 | I10: =I6*'Financial information '!$C$7 -> 17365.32727 | J10: =J6*'Financial information '!$C$7 -> 16711.24365 | K10: =K6*'Financial information '!$C$7 -> 20885.00973 | L10: =L6*'Financial information '!$C$7 -> 21120 | M10: =M6*'Financial information '!$C$7 -> 21120
A11: donut | B11: =B6*'Financial information '!$C$8 -> 11543.7273 | C11: =C6*'Financial information '!$C$8 -> 13946.20489 | D11: =D6*'Financial information '!$C$8 -> 15246.69996 | E11: =E6*'Financial information '!$C$8 -> 15924.60658 | F11: =F6*'Financial information '!$C$8 -> 15930.23806 | G11: =G6*'Financial information '!$C$8 -> 18232.60305 | H11: =H6*'Financial information '!$C$8 -> 14095.30284 | I11: =I6*'Financial information '!$C$8 -> 15194.66136 | J11: =J6*'Financial information '!$C$8 -> 14622.33819 | K11: =K6*'Financial information '!$C$8 -> 18274.38352 | L11: =L6*'Financial information '!$C$8 -> 18480 | M11: =M6*'Financial information '!$C$8 -> 18480
A12: Revenue from day old sales | B12: =SUM(B10:B11) -> 24736.55851 | C12: =SUM(C10:C11) -> 29884.72476 | D12: 32671.49992 | E12: 34124.15696 | F12: 34136.22442 | G12: 39069.86368 | H12: 30204.22037 | I12: 32559.98864 | J12: 31333.58184 | K12: 39159.39325 | L12: 39600 | M12: 39600
A13: Total Revenue
A14: Expenses
A15: Fixed Expenses | B15: ='Financial information '!$F$6 -> 5550 | C15: ='Financial information '!$F$6 -> 5550 | D15: ='Financial information '!$F$6 -> 5550 | E15: ='Financial information '!$F$6 -> 5550 | F15: ='Financial information '!$F$6 -> 5550 | G15: ='Financial information '!$F$6 -> 5550 | H15: ='Financial information '!$F$6 -> 5550 | I15: ='Financial information '!$F$6 -> 5550 | J15: ='Financial information '!$F$6 -> 5550 | K15: ='Financial information '!$F$6 -> 5550 | L15: ='Financial information '!$F$6 -> 5550 | M15: ='Financial information '!$F$6 -> 5550
A16: Total Fixed Expense | B16: =B15+'Financial information '!$B$34 -> 12550 | C16: =C15+'Financial information '!$B$34 -> 12550 | D16: =D15+'Financial information '!$B$34 -> 12550 | E16: =E15+'Financial information '!$B$34 -> 12550 | F16: =F15+'Financial information '!$B$34 -> 12550 | G16: =G15+'Financial information '!$B$34 -> 12550 | H16: =H15+'Financial information '!$B$34 -> 12550 | I16: =I15+'Financial information '!$B$34 -> 12550 | J16: =J15+'Financial information '!$B$34 -> 12550 | K16: =K15+'Financial information '!$B$34 -> 12550 | L16: =L15+'Financial information '!$B$34 -> 12550 | M16: =M15+'Financial information '!$B$34 -> 12550
A18: Variable Expenses
A19: Coffee Variable expense | B19: ='Financial information '!$F$8*$E$2 -> 1848 | C19: ='Financial information '!$F$8*$E$2 -> 1848 | D19: ='Financial information '!$F$8*$E$2 -> 1848 | E19: ='Financial information '!$F$8*$E$2 -> 1848 | F19: ='Financial information '!$F$8*$E$2 -> 1848 | G19: ='Financial information '!$F$8*$E$2 -> 1848 | H19: ='Financial information '!$F$8*$E$2 -> 1848 | I19: ='Financial information '!$F$8*$E$2 -> 1848 | J19: ='Financial information '!$F$8*$E$2 -> 1848 | K19: ='Financial information '!$F$8*$E$2 -> 1848 | L19: ='Financial information '!$F$8*$E$2 -> 1848 | M19: ='Financial information '!$F$8*$E$2 -> 1848
A20: Donut Variable expense | B20: ='Financial information '!$F$9*$E$2 -> 2640 | C20: ='Financial information '!$F$9*$E$2 -> 2640 | D20: ='Financial information '!$F$9*$E$2 -> 2640 | E20: ='Financial information '!$F$9*$E$2 -> 2640 | F20: ='Financial information '!$F$9*$E$2 -> 2640 | G20: ='Financial information '!$F$9*$E$2 -> 2640 | H20: ='Financial information '!$F$9*$E$2 -> 2640 | I20: ='Financial information '!$F$9*$E$2 -> 2640 | J20: ='Financial information '!$F$9*$E$2 -> 2640 | K20: ='Financial information '!$F$9*$E$2 -> 2640 | L20: ='Financial information '!$F$9*$E$2 -> 2640 | M20: ='Financial information '!$F$9*$E$2 -> 2640
A21: Total Variable Expenses | B21: =SUM(B19:B20) -> 4488 | C21: =SUM(C19:C20) -> 4488 | D21: 4488 | E21: 4488 | F21: 4488 | G21: 4488 | H21: 4488 | I21: 4488 | J21: 4488 | K21: 4488 | L21: 4488 | M21: 4488
A22: Expenses: due to lost sales
A23: Total Expenses | B23: =B21+B16 -> 17038 | C23: =C21+C16 -> 17038 | D23: 17038 | E23: 17038 | F23: 17038 | G23: 17038 | H23: 17038 | I23: 17038 | J23: 17038 | K23: 17038 | L23: 17038 | M23: 17038
N24: Yearly Total
A25: Profit Donuts and Coffee | B25: =B12-B23+B7*G2-B8*$F$2 -> 10175.79876 | C25: =C12-C23+C7*H2-C8*$F$2 -> 12846.72476 | D25: =D12-D23+D7*I2-D8*$F$2 -> 15633.49992 | E25: 17086.15696 | F25: 17098.22442 | G25: 22031.86368 | H25: 13166.22037 | I25: 15521.98864 | J25: 14295.58184 | K25: 22121.39325 | L25: 20703.48726 | M25: 18028.29818 | N25: =SUM(B25:M25) -> 198709.238
A27: Part 3
A28: HIGH DEMAND
A29: Month | B29: =B4 -> Jan | C29: =C4 -> Feb | D29: March | E29: April | F29: May | G29: June | H29: July | I29: August | J29: September | K29: October | L29: November | M29: December
A30: Demand | B30: =B5*(1+'Financial information '!$D$32) -> 4023.813517 | C30: =C5*(1+'Financial information '!$D$32) -> 4861.248561 | D30: =D5*(1+'Financial information '!$D$32) -> 5314.563987 | E30: =E5*(1+'Financial information '!$D$32) -> 5550.862865 | F30: =F5*(1+'Financial information '!$D$32) -> 5552.825838 | G30: =G5*(1+'Financial information '!$D$32) -> 6355.364492 | H30: =H5*(1+'Financial information '!$D$32) -> 4913.219847 | I30: =I5*(1+'Financial information '!$D$32) -> 5296.424818 | J30: =J5*(1+'Financial information '!$D$32) -> 5096.929313 | K30: =K5*(1+'Financial information '!$D$32) -> 6369.927969 | L30: =L5*(1+'Financial information '!$D$32) -> 7197.395182 | M30: =M5*(1+'Financial information '!$D$32) -> 8285.305406
A31: satisfied demand | B31: =IF(B30<$E$2,B30,$E$2) -> 4023.813517 | C31: =IF(C30<$E$2,C30,$E$2) -> 4861.248561 | D31: =IF(D30<$E$2,D30,$E$2) -> 5280 | E31: 5280 | F31: 5280 | G31: 5280 | H31: 4913.219847 | I31: 5280 | J31: 5096.929313 | K31: 5280 | L31: 5280 | M31: 5280
A32: Extra donuts(over) | B32: =IF($E$2>B30,$E$2-B30,0) -> 1256.186483 | C32: =IF($E$2>C30,$E$2-C30,0) -> 418.7514385 | D32: =IF($E$2>D30,$E$2-D30,0) -> 0 | E32: 0 | F32: 0 | G32: 0 | H32: 366.7801532 | I32: 0 | J32: 183.0706866 | K32: 0 | L32: 0 | M32: 0
A33: Unsatisfied customers (short) | B33: =IF($E$2<B30,B30-$E$2,0) -> 0 | C33: =C8 -> 0 | D33: 0 | E33: 0 | F33: 0 | G33: 0 | H33: 0 | I33: 0 | J33: 0 | K33: 0 | L33: 619.5042477 | M33: 1511.233939
A34: Revenue
A35: coffee | B35: =B31*'Financial information '!$C$7 -> 16095.25407 | C35: =C31*'Financial information '!$C$7 -> 19444.99425 | D35: =D31*'Financial information '!$C$7 -> 21120 | E35: =E31*'Financial information '!$C$7 -> 21120 | F35: =F31*'Financial information '!$C$7 -> 21120 | G35: =G31*'Financial information '!$C$7 -> 21120 | H35: =H31*'Financial information '!$C$7 -> 19652.87939 | I35: =I31*'Financial information '!$C$7 -> 21120 | J35: =J31*'Financial information '!$C$7 -> 20387.71725 | K35: =K31*'Financial information '!$C$7 -> 21120 | L35: =L31*'Financial information '!$C$7 -> 21120 | M35: =M31*'Financial information '!$C$7 -> 21120
A36: donut | B36: =B31*'Financial information '!$C$8 -> 14083.34731 | C36: =C31*'Financial information '!$C$8 -> 17014.36997 | D36: =D31*'Financial information '!$C$8 -> 18480 | E36: =E31*'Financial information '!$C$8 -> 18480 | F36: =F31*'Financial information '!$C$8 -> 18480 | G36: =G31*'Financial information '!$C$8 -> 18480 | H36: =H31*'Financial information '!$C$8 -> 17196.26946 | I36: =I31*'Financial information '!$C$8 -> 18480 | J36: =J31*'Financial information '!$C$8 -> 17839.2526 | K36: =K31*'Financial information '!$C$8 -> 18480 | L36: =L31*'Financial information '!$C$8 -> 18480 | M36: =M31*'Financial information '!$C$8 -> 18480
A37: Revenue from day old sales | B37: =SUM(B35:B36) -> 30178.60138 | C37: =SUM(C35:C36) -> 36459.36421 | D37: =SUM(D35:D36) -> 39600 | E37: 39600 | F37: 39600 | G37: 39600 | H37: 36849.14885 | I37: 39600 | J37: 38226.96985 | K37: 39600 | L37: 39600 | M37: 39600
A38: Total Revenue
A39: Expenses
A40: Fixed Expenses | B40: ='Financial information '!$F$6 -> 5550 | C40: ='Financial information '!$F$6 -> 5550 | D40: ='Financial information '!$F$6 -> 5550 | E40: ='Financial information '!$F$6 -> 5550 | F40: ='Financial information '!$F$6 -> 5550 | G40: ='Financial information '!$F$6 -> 5550 | H40: ='Financial information '!$F$6 -> 5550 | I40: ='Financial information '!$F$6 -> 5550 | J40: ='Financial information '!$F$6 -> 5550 | K40: ='Financial information '!$F$6 -> 5550 | L40: ='Financial information '!$F$6 -> 5550 | M40: ='Financial information '!$F$6 -> 5550
A41: Total Fixed Expense | B41: =B15+'Financial information '!$B$34 -> 12550 | C41: =C15+'Financial information '!$B$34 -> 12550 | D41: =D15+'Financial information '!$B$34 -> 12550 | E41: =E15+'Financial information '!$B$34 -> 12550 | F41: =F15+'Financial information '!$B$34 -> 12550 | G41: =G15+'Financial information '!$B$34 -> 12550 | H41: =H15+'Financial information '!$B$34 -> 12550 | I41: =I15+'Financial information '!$B$34 -> 12550 | J41: =J15+'Financial information '!$B$34 -> 12550 | K41: =K15+'Financial information '!$B$34 -> 12550 | L41: =L15+'Financial information '!$B$34 -> 12550 | M41: =M15+'Financial information '!$B$34 -> 12550
A43: Variable Expenses
A44: Coffee Variable expense | B44: ='Financial information '!$F$8*$E$2 -> 1848 | C44: ='Financial information '!$F$8*$E$2 -> 1848 | D44: ='Financial information '!$F$8*$E$2 -> 1848 | E44: ='Financial information '!$F$8*$E$2 -> 1848 | F44: ='Financial information '!$F$8*$E$2 -> 1848 | G44: ='Financial information '!$F$8*$E$2 -> 1848 | H44: ='Financial information '!$F$8*$E$2 -> 1848 | I44: ='Financial information '!$F$8*$E$2 -> 1848 | J44: ='Financial information '!$F$8*$E$2 -> 1848 | K44: ='Financial information '!$F$8*$E$2 -> 1848 | L44: ='Financial information '!$F$8*$E$2 -> 1848 | M44: ='Financial information '!$F$8*$E$2 -> 1848
A45: Donut Variable expense | B45: ='Financial information '!$F$9*$E$2 -> 2640 | C45: ='Financial information '!$F$9*$E$2 -> 2640 | D45: ='Financial information '!$F$9*$E$2 -> 2640 | E45: ='Financial information '!$F$9*$E$2 -> 2640 | F45: ='Financial information '!$F$9*$E$2 -> 2640 | G45: ='Financial information '!$F$9*$E$2 -> 2640 | H45: ='Financial information '!$F$9*$E$2 -> 2640 | I45: ='Financial information '!$F$9*$E$2 -> 2640 | J45: ='Financial information '!$F$9*$E$2 -> 2640 | K45: ='Financial information '!$F$9*$E$2 -> 2640 | L45: ='Financial information '!$F$9*$E$2 -> 2640 | M45: ='Financial information '!$F$9*$E$2 -> 2640
A46: Total Variable Expenses | B46: =SUM(B44:B45) -> 4488 | C46: =SUM(C44:C45) -> 4488 | D46: =SUM(D44:D45) -> 4488 | E46: 4488 | F46: 4488 | G46: 4488 | H46: 4488 | I46: 4488 | J46: 4488 | K46: 4488 | L46: 4488 | M46: 4488
A47: Expenses: due to lost sales
A48: Total Expenses | B48: =B46+B41 -> 17038 | C48: =C46+C41 -> 17038 | D48: =D46+D41 -> 17038 | E48: 17038 | F48: 17038 | G48: 17038 | H48: 17038 | I48: 17038 | J48: 17038 | K48: 17038 | L48: 17038 | M48: 17038
N49: Yearly Total
A50: Profit Donuts and Coffee | B50: =B37-B48+B32*G27-B33*$F$2 -> 13140.60138 | C50: =C37-C48+C32*H27-C33*$F$2 -> 19421.36421 | D50: =D37-D48+D32*I27-D33*$F$2 -> 22562 | E50: 22562 | F50: 22562 | G50: 22562 | H50: 19811.14885 | I50: 22562 | J50: 21188.96985 | K50: 22562 | L50: 20703.48726 | M50: 18028.29818 | N50: =SUM(B50:M50) -> 247665.8697
A52: Part 3
A53: LOW DEMAND
A54: Month | B54: =B29 -> Jan | C54: =C29 -> Feb | D54: March | E54: April | F54: May | G54: June | H54: July | I54: August | J54: September | K54: October | L54: November | M54: December
A55: Demand | B55: =B5*(1-'Financial information '!$E$32) -> 2440.673773 | C55: =C5*(1-'Financial information '!$E$32) -> 2948.626177 | D55: =D5*(1-'Financial information '!$E$32) -> 3223.587992 | E55: =E5*(1-'Financial information '!$E$32) -> 3366.91682 | F55: =F5*(1-'Financial information '!$E$32) -> 3368.107476 | G55: =G5*(1-'Financial information '!$E$32) -> 3854.893216 | H55: =H5*(1-'Financial information '!$E$32) -> 2980.149743 | I55: =I5*(1-'Financial information '!$E$32) -> 3212.585546 | J55: =J5*(1-'Financial information '!$E$32) -> 3091.580075 | K55: =K5*(1-'Financial information '!$E$32) -> 3863.726801 | L55: =L5*(1-'Financial information '!$E$32) -> 4365.633143 | M55: =M5*(1-'Financial information '!$E$32) -> 5025.513115
A56: satisfied demand | B56: =IF(B55<$E$2,B55,$E$2) -> 2440.673773 | C56: =IF(C55<$E$2,C55,$E$2) -> 2948.626177 | D56: =IF(D55<$E$2,D55,$E$2) -> 3223.587992 | E56: 3366.91682 | F56: 3368.107476 | G56: 3854.893216 | H56: 2980.149743 | I56: 3212.585546 | J56: 3091.580075 | K56: 3863.726801 | L56: 4365.633143 | M56: 5025.513115
A57: Extra donuts(over) | B57: =IF($E$2>B55,$E$2-B55,0) -> 2839.326227 | C57: =IF($E$2>C55,$E$2-C55,0) -> 2331.373823 | D57: =IF($E$2>D55,$E$2-D55,0) -> 2056.412008 | E57: 1913.08318 | F57: 1911.892524 | G57: 1425.106784 | H57: 2299.850257 | I57: 2067.414454 | J57: 2188.419925 | K57: 1416.273199 | L57: 914.3668567 | M57: 254.4868848
A58: Unsatisfied customers (short) | B58: =IF($E$2<B55,B55-$E$2,0) -> 0 | C58: =C33 -> 0 | D58: 0 | E58: 0 | F58: 0 | G58: 0 | H58: 0 | I58: 0 | J58: 0 | K58: 0 | L58: 619.5042477 | M58: 1511.233939
A59: Revenue
A60: coffee | B60: =B56*'Financial information '!$C$7 -> 9762.695091 | C60: =C56*'Financial information '!$C$7 -> 11794.50471 | D60: =D56*'Financial information '!$C$7 -> 12894.35197 | E60: =E56*'Financial information '!$C$7 -> 13467.66728 | F60: =F56*'Financial information '!$C$7 -> 13472.4299 | G60: =G56*'Financial information '!$C$7 -> 15419.57287 | H60: =H56*'Financial information '!$C$7 -> 11920.59897 | I60: =I56*'Financial information '!$C$7 -> 12850.34218 | J60: =J56*'Financial information '!$C$7 -> 12366.3203 | K60: =K56*'Financial information '!$C$7 -> 15454.9072 | L60: =L56*'Financial information '!$C$7 -> 17462.53257 | M60: =M56*'Financial information '!$C$7 -> 20102.05246
A61: donut | B61: =B56*'Financial information '!$C$8 -> 8542.358205 | C61: =C56*'Financial information '!$C$8 -> 10320.19162 | D61: =D56*'Financial information '!$C$8 -> 11282.55797 | E61: =E56*'Financial information '!$C$8 -> 11784.20887 | F61: =F56*'Financial information '!$C$8 -> 11788.37617 | G61: =G56*'Financial information '!$C$8 -> 13492.12626 | H61: =H56*'Financial information '!$C$8 -> 10430.5241 | I61: =I56*'Financial information '!$C$8 -> 11244.04941 | J61: =J56*'Financial information '!$C$8 -> 10820.53026 | K61: =K56*'Financial information '!$C$8 -> 13523.0438 | L61: =L56*'Financial information '!$C$8 -> 15279.716 | M61: =M56*'Financial information '!$C$8 -> 17589.2959
A62: Revenue from day old sales | B62: =SUM(B60:B61) -> 18305.0533 | C62: =SUM(C60:C61) -> 22114.69632 | D62: =SUM(D60:D61) -> 24176.90994 | E62: 25251.87615 | F62: 25260.80607 | G62: 28911.69912 | H62: 22351.12307 | I62: 24094.39159 | J62: 23186.85056 | K62: 28977.95101 | L62: 32742.24857 | M62: 37691.34836
A63: Total Revenue
A64: Expenses
A65: Fixed Expenses | B65: ='Financial information '!$F$6 -> 5550 | C65: ='Financial information '!$F$6 -> 5550 | D65: ='Financial information '!$F$6 -> 5550 | E65: ='Financial information '!$F$6 -> 5550 | F65: ='Financial information '!$F$6 -> 5550 | G65: ='Financial information '!$F$6 -> 5550 | H65: ='Financial information '!$F$6 -> 5550 | I65: ='Financial information '!$F$6 -> 5550 | J65: ='Financial information '!$F$6 -> 5550 | K65: ='Financial information '!$F$6 -> 5550 | L65: ='Financial information '!$F$6 -> 5550 | M65: ='Financial information '!$F$6 -> 5550
A66: Total Fixed Expense | B66: =B15+'Financial information '!$B$34 -> 12550 | C66: =C15+'Financial information '!$B$34 -> 12550 | D66: =D15+'Financial information '!$B$34 -> 12550 | E66: =E15+'Financial information '!$B$34 -> 12550 | F66: =F15+'Financial information '!$B$34 -> 12550 | G66: =G15+'Financial information '!$B$34 -> 12550 | H66: =H15+'Financial information '!$B$34 -> 12550 | I66: =I15+'Financial information '!$B$34 -> 12550 | J66: =J15+'Financial information '!$B$34 -> 12550 | K66: =K15+'Financial information '!$B$34 -> 12550 | L66: =L15+'Financial information '!$B$34 -> 12550 | M66: =M15+'Financial information '!$B$34 -> 12550
A68: Variable Expenses
A69: Coffee Variable expense | B69: ='Financial information '!$F$8*$E$2 -> 1848 | C69: ='Financial information '!$F$8*$E$2 -> 1848 | D69: ='Financial information '!$F$8*$E$2 -> 1848 | E69: ='Financial information '!$F$8*$E$2 -> 1848 | F69: ='Financial information '!$F$8*$E$2 -> 1848 | G69: ='Financial information '!$F$8*$E$2 -> 1848 | H69: ='Financial information '!$F$8*$E$2 -> 1848 | I69: ='Financial information '!$F$8*$E$2 -> 1848 | J69: ='Financial information '!$F$8*$E$2 -> 1848 | K69: ='Financial information '!$F$8*$E$2 -> 1848 | L69: ='Financial information '!$F$8*$E$2 -> 1848 | M69: ='Financial information '!$F$8*$E$2 -> 1848
A70: Donut Variable expense | B70: ='Financial information '!$F$9*$E$2 -> 2640 | C70: ='Financial information '!$F$9*$E$2 -> 2640 | D70: ='Financial information '!$F$9*$E$2 -> 2640 | E70: ='Financial information '!$F$9*$E$2 -> 2640 | F70: ='Financial information '!$F$9*$E$2 -> 2640 | G70: ='Financial information '!$F$9*$E$2 -> 2640 | H70: ='Financial information '!$F$9*$E$2 -> 2640 | I70: ='Financial information '!$F$9*$E$2 -> 2640 | J70: ='Financial information '!$F$9*$E$2 -> 2640 | K70: ='Financial information '!$F$9*$E$2 -> 2640 | L70: ='Financial information '!$F$9*$E$2 -> 2640 | M70: ='Financial information '!$F$9*$E$2 -> 2640
A71: Total Variable Expenses | B71: =SUM(B69:B70) -> 4488 | C71: =SUM(C69:C70) -> 4488 | D71: =SUM(D69:D70) -> 4488 | E71: 4488 | F71: 4488 | G71: 4488 | H71: 4488 | I71: 4488 | J71: 4488 | K71: 4488 | L71: 4488 | M71: 4488
A72: Expenses: due to lost sales
A73: Total Expenses | B73: =B71+B66 -> 17038 | C73: =C71+C66 -> 17038 | D73: =D71+D66 -> 17038 | E73: 17038 | F73: 17038 | G73: 17038 | H73: 17038 | I73: 17038 | J73: 17038 | K73: 17038 | L73: 17038 | M73: 17038
N74: Yearly Total
A75: Profit Donuts and Coffee | B75: =B62-B73+B57*G52-B58*$F$2 -> 1267.053296 | C75: =C62-C73+C57*H52-C58*$F$2 -> 5076.696325 | D75: =D62-D73+D57*I52-D58*$F$2 -> 7138.909941 | E75: 8213.876147 | F75: 8222.806068 | G75: 11873.69912 | H75: 5313.123073 | I75: 7056.391591 | J75: 6148.850565 | K75: 11939.95101 | L75: 13845.73583 | M75: 16119.64655 | N75: =SUM(B75:M75) -> 102216.7395

Sheet Expected Values Pt3
B1: PAYOFF TABLE
C3: State of Nature | H3: Summary of Results | I3: Methods
B4: Decision Alternatives | C4: Low | D4: Average | E4: High | H4: =B4 -> Decision Alternatives | I4: Maximin | J4: MaxiMax | K4: Laplace | L4: MinMax regret | M4: EVUII | N4: EOL
B5: Continue as planned | C5: =AVERAGE('Current operations Pt2 & Pt3 '!B55:M55) -> 2805.241524 | D5: =AVERAGE('Current operations Pt2 & Pt3 '!B5:M5) -> 3790.866924 | E5: =AVERAGE('Current operations Pt2 & Pt3 '!B30:M30) -> 4624.857648 | H5: Continue as planned | I5: =F13 -> 2805.241524 | J5: =F20 -> 4624.857648 | K5: =F27 -> 3740.322032 | M5: =F42 -> 3711.258719 | N5: =F58 -> 3711.258719
B6: Join Franchise | C6: =AVERAGE('Franchise operations Pt2 & Pt3'!B55:M55) -> 3478.49949 | D6: =AVERAGE('Franchise operations Pt2 & Pt3'!B5:M5) -> 4700.674986 | E6: =AVERAGE('Franchise operations Pt2 & Pt3'!B30:M30) -> 5734.823483 | H6: Join Franchise | I6: =F14 -> 3478.49949 | J6: =F21 -> 5734.823483 | K6: =F28 -> 4637.99932 | M6: =F43 -> 4601.960811 | N6: =F59 -> 4601.960811
H7: Decision Alternatives | I7: =I6 -> 3478.49949 | J7: =J6 -> 5734.823483 | K7: 4637.99932 | L7: 0 | M7: 4601.960811 | N7: =N5 -> 3711.258719
B8: DM UNDER IGNORANCE
H9: Kiana should choose to:
B10: Maximin | H10: join franchise
C11: State of Nature
B12: Decision Alternatives | C12: Low | D12: Average | E12: High | F12: Min | G12: Max | H12: Because:
B13: Continue as planned | C13: =$C$5 -> 2805.241524 | D13: =$D$5 -> 3790.866924 | E13: =$E$5 -> 4624.857648 | F13: =MIN(C13:E13) -> 2805.241524 | G13: =MAX(F13:F14) -> 3478.49949 | H13: more profits are earned when we buy franchise.
B14: Join Franchise | C14: =$C$6 -> 3478.49949 | D14: =$D$6 -> 4700.674986 | E14: =$E$6 -> 5734.823483 | F14: =MIN(C14:E14) -> 3478.49949
B17: Maximax
C18: State of Nature
B19: Decision Alternatives | C19: Low | D19: Average | E19: High | F19: Max | G19: Max
B20: Continue as planned | C20: =$C$5 -> 2805.241524 | D20: =$D$5 -> 3790.866924 | E20: =$E$5 -> 4624.857648 | F20: =MAX(C13:E13) -> 4624.857648 | G20: =MAX(F20:F21) -> 5734.823483
B21: Join Franchise | C21: =$C$6 -> 3478.49949 | D21: =$D$6 -> 4700.674986 | E21: =$E$6 -> 5734.823483 | F21: =MAX(C14:E14) -> 5734.823483
B24: Laplace
C25: State of Nature
B26: Decision Alternatives | C26: Low | D26: Average | E26: High | F26: Average | G26: Max
B27: Continue as planned | C27: =$C$5 -> 2805.241524 | D27: =$D$5 -> 3790.866924 | E27: =$E$5 -> 4624.857648 | F27: =AVERAGE(C27:E27) -> 3740.322032 | G27: =MAX(F27:F28) -> 4637.99932
B28: Join Franchise | C28: =$C$6 -> 3478.49949 | D28: =$D$6 -> 4700.674986 | E28: =$E$6 -> 5734.823483 | F28: =AVERAGE(C28:E28) -> 4637.99932
B31: Minimax Regret
B32: Regret table | C32: State of Nature
B33: Decision Alternatives | C33: Low | D33: Average | E33: High | F33: Max regret value | G33: Min regret value
B34: Continue as planned | C34: =$C$5 -> 2805.241524 | D34: =$D$5 -> 3790.866924 | E34: =$E$5 -> 4624.857648 | F34: =max -> 
B35: Join Franchise | C35: =$C$6 -> 3478.49949 | D35: =$D$6 -> 4700.674986 | E35: =$E$6 -> 5734.823483
B37: DM UNDER RISK
B38: EVUII
C39: State of Nature
B40: Decision Alternatives | C40: Low | D40: Average | E40: High | F40: Expected value | G40: Max
B41: Probability | C41: 0.25 | D41: 0.55 | E41: 0.2
B42: Continue as planned | C42: =$C$5 -> 2805.241524 | D42: =$D$5 -> 3790.866924 | E42: =$E$5 -> 4624.857648 | F42: =C42*$C$41+D42*$D$41+E42*$E$41 -> 3711.258719 | G42: =MAX(F42:F43) -> 4601.960811
B43: Join Franchise | C43: =$C$6 -> 3478.49949 | D43: =$D$6 -> 4700.674986 | E43: =$E$6 -> 5734.823483 | F43: =C43*$C$41+D43*$D$41+E43*$E$41 -> 4601.960811
B46: EVUPI
C47: State of Nature
B48: Decision Alternatives | C48: Low | D48: Average | E48: High | F48: Expected value
B49: Probability | C49: 0.25 | D49: 0.55 | E49: 0.2
B50: payoff
B52: EVPI
B54: EOL
B55: Regret table | C55: State of Nature
B56: Decision Alternatives | C56: Low | D56: Average | E56: High | F56: EOQ | G56: Min
B57: Probability | C57: 0.25 | D57: 0.55 | E57: 0.2
B58: Continue as planned | C58: =$C$5 -> 2805.241524 | D58: =$D$5 -> 3790.866924 | E58: =$E$5 -> 4624.857648 | F58: =C58*$C$41+D58*$D$41+E58*$E$41 -> 3711.258719 | G58: =MIN(F58:F59) -> 3711.258719
B59: Join Franchise | C59: =$C$6 -> 3478.49949 | D59: =$D$6 -> 4700.674986 | E59: =$E$6 -> 5734.823483 | F59: =C59*$C$41+D59*$D$41+E59*$E$41 -> 4601.960811
